bitfinex/quotes_ETHUSD_20250215
["timestamp","ask_amount","ask_price","bid_price","bid_amount"]
[1739639030971,0.005,2693.4,2693.3,8.09256046]
[1739639031683,0.005,2693.4,2693.3,11.09256046]
[1739639042324,0.005,2693.4,2693.0,3.55725546]
[1739639042486,0.017,2693.3,2693.0,7.27049546]
[1739639042829,0.017,2693.3,2693.1,3.71315]
[1739639043427,0.017,2693.3,2693.0,3.55725546]
[1739639043801,0.017,2693.3,2693.0,7.27049546]
[1739639043996,0.017,2693.3,2693.1,4.12092032]
[1739639044411,0.005,2693.4,2693.1,4.12092032]
[1739639044611,0.005,2693.4,2693.3,3.55725546]
[1739639044828,0.005,2693.4,2693.3,7.27016546]
[1739639045324,0.005,2693.4,2693.3,8.04956546]
[1739639045527,0.005,2693.4,2693.3,12.26660704]
[1739639047030,0.005,2693.4,2693.3,7.77429704]
[1739639047325,0.005,2693.4,2693.3,6.55725546]
[1739639050104,0.005,2693.4,2693.3,10.27016546]
[1739639050613,0.022,2693.4,2693.3,3.55725546]
[1739639050820,0.022,2693.4,2693.1,3.40781032]
[1739639051212,0.022,2693.4,2693.1,0.40781032]
[1739639051728,3.7348,2693.4,2693.0,3.55725546]
[1739639052041,3.71313,2693.2,2692.7,4.52124]
[1739639052241,3.73029,2693.1,2692.7,3.55725546]
[1739639052422,0.017,2693.1,2692.7,3.55725546]
[1739639052829,0.017,2692.9,2692.7,3.55725546]
[1739639053030,3.7136,2692.8,2692.6,8.333]
[1739639053413,0.017,2692.9,2692.6,8.333]
[1739639053934,0.017,2692.9,2692.4,10.98537546]
[1739639054107,0.017,2692.9,2692.5,1.09853755]
[1739639054645,3.73051,2692.9,2692.5,1.09853755]
[1739639055035,0.017,2692.9,2692.5,1.09853755]
[1739639055229,0.017,2692.9,2692.7,3.55725546]
[1739639058587,3.73048,2692.9,2692.4,7.27140546]
[1739639058730,3.73048,2692.9,2692.4,8.45073101]
[1739639059126,3.71364,2692.8,2692.4,4.73658101]
[1739639059363,3.73079,2692.7,2692.4,3.55725546]
[1739639059567,0.017,2692.7,2692.4,3.55725546]
[1739639059742,0.017,2692.9,2692.5,3.71401]
[1739639063459,0.017,2692.9,2692.4,3.55725546]
[1739639063460,3.73047,2692.9,2692.4,3.55725546]
[1739639063667,0.017,2692.9,2692.5,3.71399]
[1739639063896,0.017,2692.9,2692.5,4.81253455]
[1739639064059,0.017,2692.9,2692.6,3.71386]
[1739639064260,0.017,2692.9,2692.6,3.7138]
[1739639065796,0.017,2692.9,2692.6,3.71378]
[1739639067119,5.0935314,2693.0,2692.7,7.27095546]
[1739639067316,5.0935314,2693.0,2692.7,8.55885346]
[1739639067519,5.0935314,2693.0,2692.9,3.71346]
[1739639070783,0.017,2693.3,2692.9,3.71346]
[1739639071404,0.017,2693.3,2693.1,3.71317]
[1739639071590,0.005,2693.4,2693.1,3.71317]
[1739639071894,0.005,2693.4,2693.3,7.27016546]
[1739639073685,0.005,2693.4,2693.3,11.07956546]
[1739639077098,0.005,2693.4,2693.3,11.62956546]
[1739639078519,0.005,2693.4,2693.3,11.81942077]
[1739639078680,0.005,2693.4,2693.3,13.4719711]
[1739639084590,0.017,2694.5,2693.7,0.7976]
[1739639084820,0.017,2694.5,2694.0,3.71187]
[1739639085321,3.72826,2694.5,2694.0,3.71187]
[1739639086726,0.017,2694.3,2694.0,3.71187]
[1739639087425,0.017,2694.3,2694.0,3.71195]
[1739639087725,0.017,2694.3,2693.9,7.26930546]
[1739639088095,0.017,2694.3,2694.0,3.71186]
[1739639089112,0.017,2694.3,2694.1,3.71181]
[1739639089517,0.017,2694.3,2693.9,3.55725546]
[1739639089822,0.017,2694.3,2693.9,7.99615401]
[1739639091532,0.017,2694.3,2694.0,3.71191]
[1739639092519,0.017,2694.3,2694.0,3.71186]
[1739639101284,0.017,2694.3,2694.1,3.71172]
[1739639101438,0.017,2694.3,2694.2,3.71167]
[1739639102114,0.017,2694.3,2694.1,3.71171]
[1739639102307,0.017,2694.3,2694.2,0.742357]
[1739639104333,0.017,2694.3,2694.1,3.71171]
[1739639104531,0.017,2694.3,2694.2,3.71167]
[1739639104836,0.017,2694.8,2694.3,3.71148]
[1739639105616,0.017,2694.8,2694.4,3.71137]
[1739639105809,0.017,2694.8,2694.3,3.71153]
[1739639106048,0.017,2694.8,2694.3,4.80957555]
[1739639106235,3.72798,2694.8,2694.3,1.09804555]
[1739639107511,0.017,2694.7,2694.0,3.71187]
[1739639107714,3.71157,2694.3,2693.9,0.72693855]
[1739639109418,0.017,2694.2,2693.7,3.0]
[1739639109743,0.017,2694.2,2693.6,10.98205546]
[1739639109744,0.017,2694.2,2693.6,7.26964546]
[1739639110647,0.017,2694.2,2693.6,3.55725546]
[1739639110843,0.017,2693.8,2693.3,13.53880579]
[1739639111011,0.017,2693.7,2693.3,8.329]
[1739639111216,0.017,2693.5,2693.3,8.329]
[1739639114024,3.72965,2693.5,2693.3,8.329]
[1739639114622,0.017,2693.5,2693.3,8.329]
[1739639114823,8.8058114,2693.8,2693.3,9.1619]
[1739639115127,8.8227714,2693.8,2693.3,9.1619]
[1739639115644,5.0935314,2693.8,2693.6,3.55725546]
[1739639115821,0.017,2694.0,2693.6,3.55725546]
[1739639116151,0.017,2694.3,2693.8,3.71213]
[1739639116368,0.017,2694.3,2693.7,1.18492555]
[1739639116534,0.017,2694.3,2693.8,3.71221]
[1739639116731,3.72855,2694.3,2693.8,3.71221]
[1739639116936,0.017,2694.3,2693.8,3.71221]
[1739639117143,3.72861,2694.3,2693.8,1.2166851]
[1739639117462,3.72861,2694.3,2693.7,1.18492555]
[1739639117667,3.72861,2694.3,2693.8,3.71218]
[1739639117842,0.017,2694.3,2693.8,3.71218]
[1739639118805,8.8218614,2694.5,2693.9,7.26929546]
[1739639119067,12.5332314,2694.5,2693.9,7.26929546]
[1739639119433,8.8218614,2694.5,2693.9,7.26929546]
[1739639119636,3.71157,2694.3,2693.9,4.77390956]
[1739639120262,8.8218614,2694.5,2693.9,4.77390956]
[1739639120768,3.71167,2694.2,2693.9,4.77390956]
[1739639121967,3.71156,2694.3,2693.9,4.77390956]
[1739639122289,3.71141,2694.4,2693.9,4.77390956]
[1739639122435,3.72889,2694.1,2693.6,3.55725546]
[1739639122772,3.71199,2694.0,2693.6,3.55725546]
[1739639123144,8.8048214,2694.5,2693.4,3.0]
[1739639123145,0.017,2693.8,2693.4,3.0]
[1739639123341,3.71252,2693.6,2693.3,8.329]
[1739639125707,5.0935314,2694.0,2693.7,3.71235]
[1739639125880,5.0935314,2694.0,2693.7,7.26960546]
[1739639126085,5.0935314,2694.0,2693.7,3.55725546]
[1739639126761,3.7121,2693.9,2693.4,11.09921546]
[1739639126963,0.017,2693.8,2693.4,8.50007701]
[1739639127170,3.7121,2693.9,2693.4,12.21284701]
[1739639127376,0.017,2694.0,2693.5,3.71264]
[1739639127586,3.71188,2694.1,2693.6,0.8292]
[1739639130292,7.42379,2694.1,2693.6,0.8292]
[1739639130487,7.42379,2694.1,2693.6,2.1333807]
[1739639130669,3.71188,2694.1,2693.6,2.1333807]
[1739639130868,7.42377,2694.1,2693.6,2.1333807]
[1739639131271,3.71188,2694.1,2693.6,2.1333807]
[1739639131496,0.017,2694.2,2693.7,3.71235]
[1739639131683,3.72869,2694.2,2693.7,4.66817607]
[1739639131886,0.017,2694.2,2693.7,8.22543153]
[1739639132473,3.72868,2694.2,2693.7,8.22543153]
[1739639132674,0.017,2694.2,2693.7,4.51308153]
[1739639132876,3.71189,2694.1,2693.7,4.51308153]
[1739639133098,3.71196,2694.0,2693.6,0.8292]
[1739639133598,3.71189,2694.1,2693.6,0.8292]
[1739639134809,7.42378,2694.1,2693.6,0.8292]
[1739639135126,3.71189,2694.1,2693.6,0.8292]
[1739639135314,7.42378,2694.1,2693.6,0.8292]
[1739639135477,7.42378,2694.1,2693.6,1.93909655]
[1739639135671,3.71189,2694.1,2693.6,1.93909655]
[1739639135898,3.71189,2694.1,2693.6,5.65152655]
[1739639137199,3.71189,2694.1,2693.6,1.93909655]
[1739639137388,3.71202,2694.0,2693.5,3.71263]
[1739639138945,3.71189,2694.1,2693.5,7.42518]
[1739639139144,3.71189,2694.1,2693.5,3.71255]
[1739639139145,7.42378,2694.1,2693.5,3.71255]
[1739639139314,3.71189,2694.1,2693.5,7.42509]
[1739639139518,3.71189,2694.1,2693.6,3.71249]
[1739639139725,5.1105314,2694.2,2693.7,4.49873]
[1739639139919,5.1105314,2694.2,2693.7,11.76824546]
[1739639140149,8.8222114,2694.2,2693.7,8.05591546]
[1739639142762,5.1105314,2694.2,2693.7,8.05591546]
[1739639142930,5.0935314,2694.2,2693.7,4.34365546]
[1739639143131,5.0935314,2694.2,2693.9,3.71199]
[1739639145158,5.0935314,2694.2,2694.0,3.71192]
[1739639145861,5.0935314,2694.2,2694.0,7.42379]
[1739639146054,5.0935314,2694.2,2694.0,3.71187]
[1739639146250,5.0935314,2694.2,2694.0,7.26912546]
[1739639146448,5.0935314,2694.2,2694.1,1.54131255]
[1739639148045,3.71134,2694.5,2694.1,1.54131255]
[1739639148545,7.42268,2694.5,2694.1,1.54131255]
[1739639148855,3.71134,2694.5,2694.1,1.54131255]
[1739639149054,5.1105314,2694.6,2694.2,3.71165]
[1739639149245,5.1105314,2694.6,2694.2,4.9638588]
[1739639149246,5.0935314,2694.6,2694.2,4.9638588]
[1739639149647,8.8046514,2694.6,2694.2,4.9638588]
[1739639149853,8.8046514,2694.6,2694.2,1.2522088]
[1739639150551,5.0935314,2694.6,2694.2,4.9638488]
[1739639151651,3.728,2694.7,2694.2,4.9638488]
[1739639151652,0.017,2694.7,2694.2,4.9638488]
[1739639151854,0.017,2694.7,2694.3,0.65051613]
[1739639152973,3.72801,2694.7,2694.3,0.65051613]
[1739639153972,0.017,2694.7,2694.3,0.65051613]
[1739639154168,0.017,2694.7,2694.3,4.36203613]
[1739639155473,0.017,2694.7,2694.3,0.65051613]
[1739639157269,3.71127,2694.5,2694.1,0.8144]
[1739639157779,3.71127,2694.5,2694.0,7.26910546]
[1739639158581,3.71127,2694.5,2694.0,3.55725546]
[1739639158913,0.017,2694.3,2693.9,4.48107]
[1739639159678,0.017,2694.3,2693.7,7.26959546]
[1739639159883,0.017,2694.3,2693.6,0.7974]
[1739639159884,3.71189,2694.1,2693.6,0.7974]
[1739639160179,0.017,2694.0,2693.5,3.71258]
[1739639160564,0.017,2694.0,2693.5,3.71256]
[1739639160764,3.72878,2694.2,2693.6,3.71245]
[1739639160944,3.71189,2694.1,2693.5,3.71255]
[1739639161264,3.71195,2694.0,2693.5,4.89055555]
[1739639161999,3.71195,2694.0,2693.5,3.71255]
[1739639162289,3.72878,2694.2,2693.5,3.71255]
[1739639162490,3.71186,2694.1,2693.5,7.4251]
[1739639162660,3.71186,2694.1,2693.5,3.71255]
[1739639163055,3.71186,2694.1,2693.2,3.0]
[1739639163056,3.7124,2693.7,2693.2,3.0]
[1739639163362,3.7294,2693.7,2693.1,8.06773546]
[1739639164194,3.71262,2693.6,2693.1,4.35465546]
[1739639164506,3.7294,2693.7,2693.1,8.06782546]
[1739639164673,3.7294,2693.7,2693.1,9.24594701]
[1739639164870,3.71264,2693.5,2692.9,4.51079]
[1739639165097,3.71264,2693.5,2692.9,0.7974]
[1739639165254,3.71299,2693.3,2692.8,3.55725546]
[1739639165454,8.8065214,2693.3,2692.8,3.55725546]
[1739639165659,0.017,2693.1,2692.6,8.33]
[1739639165858,3.71349,2692.9,2692.6,8.33]
[1739639166061,3.71369,2692.8,2692.6,8.33]
[1739639166362,3.71374,2692.7,2692.6,8.33]
[1739639166781,3.73074,2692.7,2692.6,8.33]
[1739639166987,4.475163,2692.7,2692.6,8.33]
[1739639167181,4.475163,2692.7,2691.9,8.06948546]
[1739639167361,3.73074,2692.7,2691.9,8.06948546]
[1739639167866,3.73077,2692.7,2692.0,3.71469]
[1739639168196,3.71389,2692.6,2692.0,3.71469]
[1739639168572,3.71412,2692.5,2691.9,4.35465546]
[1739639168902,3.71431,2692.3,2691.7,0.7974]
[1739639169121,0.017,2692.2,2691.7,4.60438455]
[1739639169323,3.73111,2692.5,2691.8,3.71489]
[1739639169525,3.73111,2692.5,2691.9,3.71473]
[1739639169824,7.44524,2692.5,2691.9,3.55725546]
[1739639169998,0.017,2692.5,2692.0,3.71461]
[1739639170213,3.71379,2692.7,2692.1,4.44172655]
[1739639170391,3.71379,2692.7,2692.2,3.71443]
[1739639171025,0.017,2692.8,2692.3,3.7142]
[1739639171229,3.71326,2693.1,2692.3,3.7142]
[1739639171230,3.71347,2692.9,2692.3,4.5116]
[1739639172234,5.1105314,2693.0,2692.3,4.5116]
[1739639172235,5.1105314,2693.0,2692.3,0.7974]
[1739639172390,5.1105314,2693.0,2692.4,4.14951555]
[1739639172745,5.1105314,2693.0,2692.5,3.71392]
[1739639173026,8.8238714,2693.0,2692.4,4.14951555]
[1739639173539,5.1105314,2693.0,2692.4,4.14951555]
[1739639173745,8.8238614,2693.0,2692.4,4.14951555]
[1739639174026,5.1105314,2693.0,2692.4,4.14951555]
[1739639174231,3.71349,2692.9,2692.3,4.51168]
[1739639174428,3.71349,2692.9,2692.3,3.71428]
[1739639174734,3.71349,2692.9,2692.2,7.27163546]
[1739639175032,5.1105314,2693.0,2691.7,7.52205455]
[1739639175033,0.017,2692.6,2691.9,3.55725546]
[1739639175339,8.8244114,2692.6,2692.0,3.7147]
[1739639175635,8.8244114,2692.6,2692.1,3.71455]
[1739639175809,8.8244114,2692.6,2692.0,3.7147]
[1739639176211,8.8244114,2692.6,2692.0,7.4293]
[1739639176756,8.8244114,2692.6,2692.0,3.7146]
[1739639177058,8.8244114,2692.6,2692.0,7.42922]
[1739639177249,8.8244114,2692.6,2692.0,3.7146]
[1739639177574,5.1105314,2692.6,2692.1,3.71444]
[1739639178439,5.1105314,2692.6,2692.2,3.71438]
[1739639178641,5.1105314,2692.6,2692.4,3.71408]
[1739639178642,5.0935314,2692.6,2692.4,3.71408]
[1739639178865,5.0935314,2692.6,2692.4,4.50348]
[1739639179068,5.0935314,2692.6,2692.4,5.68099055]
[1739639179444,5.0935314,2692.6,2692.4,1.96691055]
[1739639179639,5.0935314,2692.6,2692.3,3.71427]
[1739639180025,5.0935314,2692.6,2692.4,3.71403]
[1739639180522,3.73105,2692.5,2692.0,4.52079555]
[1739639180742,3.73105,2692.5,2691.8,7.42972]
[1739639180743,3.71424,2692.4,2691.8,7.42972]
[1739639180953,3.73105,2692.5,2691.9,3.71483]
[1739639181126,3.73105,2692.5,2691.9,4.38092292]
[1739639181332,3.73105,2692.5,2692.0,3.71469]
[1739639181529,0.017,2692.5,2692.1,3.71447]
[1739639181738,0.017,2692.5,2692.0,3.71463]
[1739639181739,0.017,2692.5,2692.0,3.71461]
[1739639181925,0.017,2692.5,2692.0,4.65473251]
[1739639182658,3.71404,2692.5,2692.0,0.94012251]
[1739639182964,3.71445,2692.2,2691.7,3.71506]
[1739639183459,0.017,2692.1,2691.6,7.27240546]
[1739639183626,0.017,2692.1,2691.6,3.55725546]
[1739639183627,3.73166,2692.1,2691.6,3.55725546]
[1739639184256,7.42949,2692.0,2691.4,3.71548]
[1739639184463,3.71471,2692.0,2691.4,9.44181055]
[1739639184664,3.71471,2692.0,2691.4,5.72633055]
[1739639185741,0.017,2692.1,2691.6,3.71514]
[1739639186774,0.017,2692.1,2691.8,3.71495]
[1739639187435,0.017,2692.1,2691.7,3.71506]
[1739639187632,0.017,2692.1,2691.6,7.27239546]
[1739639188026,0.017,2692.1,2691.7,3.71503]
[1739639188530,0.017,2692.1,2691.6,8.20072406]
[1739639188962,0.017,2692.1,2691.7,3.71512]
[1739639190386,3.73157,2692.1,2691.6,8.20072406]
[1739639190591,0.017,2692.1,2691.6,8.20072406]
[1739639190791,0.017,2692.1,2691.6,11.91590406]
[1739639191087,3.73162,2692.1,2691.6,8.20072406]
[1739639192061,3.73162,2692.1,2691.6,0.9283286]
[1739639192260,3.73162,2692.1,2691.5,3.71531]
[1739639192460,0.017,2692.1,2691.6,3.7152]
[1739639193773,0.017,2692.1,2691.6,3.71518]
[1739639196586,0.017,2692.1,2691.6,7.43037]
[1739639196783,0.017,2692.1,2691.6,7.43036]
[1739639196955,3.73159,2692.1,2691.6,3.71518]
[1739639197156,3.73159,2692.1,2691.6,7.43036]
[1739639197356,0.017,2692.1,2691.7,3.71504]
[1739639197662,0.017,2692.1,2691.7,3.71512]
[1739639201928,0.017,2692.1,2691.7,4.52172]
[1739639202827,0.017,2692.1,2691.7,0.8066]
[1739639203319,0.017,2692.1,2691.6,8.173386]
[1739639203816,0.017,2692.1,2691.6,4.458196]
[1739639204015,0.017,2692.1,2691.7,3.71509]
[1739639206628,0.017,2692.1,2691.6,4.458196]
[1739639206834,0.017,2692.1,2691.8,3.71495]
[1739639211605,0.017,2692.1,2691.7,4.2415996]
[1739639213123,0.017,2692.1,2691.8,3.71497]
[1739639213317,3.73132,2692.3,2691.8,3.71497]
[1739639213522,3.73132,2692.3,2691.8,7.42988]
[1739639213723,3.73132,2692.3,2691.8,3.71491]
[1739639214660,3.73132,2692.3,2691.8,7.42982]
[1739639215349,0.017,2692.3,2691.9,3.71482]
[1739639215536,0.017,2692.3,2691.9,4.53125]
[1739639216363,5.0935314,2692.4,2691.9,4.87952842]
[1739639216555,5.0935314,2692.4,2692.1,3.71453]
[1739639216735,5.07700108,2692.4,2692.1,3.71453]
[1739639217269,5.07700108,2692.4,2691.9,12.30903842]
[1739639217439,5.07700108,2692.4,2691.9,8.59427842]
[1739639217646,5.07700108,2692.4,2691.9,12.30904842]
[1739639218234,5.07700108,2692.4,2691.9,8.59427842]
[1739639218568,5.07700108,2692.4,2692.0,3.71469]
[1739639219355,5.07700108,2692.4,2692.0,7.42932]
[1739639219571,5.07700108,2692.4,2692.0,4.94551484]
[1739639220270,5.07700108,2692.4,2692.1,3.71455]
[1739639220463,5.07700108,2692.4,2692.0,3.71463]
[1739639220968,5.07700108,2692.4,2692.1,3.71456]
[1739639221179,5.07700108,2692.4,2692.2,3.71434]
[1739639221330,5.07700108,2692.4,2692.2,4.45723]
[1739639221535,5.07700108,2692.4,2692.3,0.8184]
[1739639221748,5.07700108,2692.4,2692.3,4.53269]
[1739639222149,5.09400108,2692.9,2692.3,0.8184]
[1739639222361,5.09400108,2692.9,2692.5,3.71402]
[1739639223049,5.09400108,2692.9,2692.5,3.71394]
[1739639223249,5.09400108,2692.9,2692.5,4.11844473]
[1739639224273,8.80747108,2692.9,2692.5,0.40450473]
[1739639224461,3.71374,2692.8,2692.2,3.55725546]
[1739639224647,3.71374,2692.8,2692.1,3.71448]
[1739639224648,3.71389,2692.6,2692.1,3.71448]
[1739639225052,3.71389,2692.6,2692.0,0.8184]
[1739639225253,0.017,2692.4,2692.0,3.71466]
[1739639225963,0.017,2692.4,2692.1,3.71454]
[1739639226683,5.07700108,2692.6,2692.1,3.71454]
[1739639226877,8.79100108,2692.6,2692.1,3.71454]
[1739639227588,5.07700108,2692.6,2692.1,5.36767559]
[1739639227785,5.07700108,2692.6,2692.2,7.27168546]
[1739639227954,5.07700108,2692.6,2692.0,6.71462]
[1739639228155,5.07700108,2692.6,2692.0,3.71462]
[1739639228380,5.12342677,2692.6,2692.0,3.71462]
[1739639228561,5.07700108,2692.6,2692.0,3.71462]
[1739639228770,3.7141,2692.5,2691.9,10.98676546]
[1739639228983,5.07700108,2692.6,2692.1,3.71454]
[1739639229389,5.07700108,2692.6,2692.2,3.71435]
[1739639229707,5.07700108,2692.6,2692.1,8.19814]
[1739639230013,5.07700108,2692.6,2692.1,4.48366]
[1739639230311,7.42816,2692.5,2692.0,1.09867655]
[1739639230482,3.71402,2692.5,2692.0,1.09867655]
[1739639231016,3.71402,2692.5,2692.0,4.81333655]
[1739639233697,0.04642659,2692.4,2691.9,3.55725546]
[1739639233868,3.71424,2692.4,2691.8,3.71496]
[1739639234666,3.71424,2692.4,2691.9,3.71484]
[1739639235499,3.71424,2692.4,2691.8,3.71497]
[1739639235680,3.71467,2692.1,2691.5,3.71528]
[1739639236078,3.71467,2692.1,2691.5,7.43059]
[1739639236403,3.71465,2692.1,2691.5,3.71528]
[1739639236987,9.52290089,2692.3,2691.6,3.55725546]
[1739639237193,8.79139108,2692.3,2691.7,4.07083555]
[1739639237391,8.79139108,2692.3,2691.8,3.71491]
[1739639237592,12.50578108,2692.3,2691.8,3.71491]
[1739639237799,8.79139108,2692.3,2691.7,0.35572555]
[1739639238004,8.79139108,2692.3,2691.9,3.71477]
[1739639238005,5.07700108,2692.3,2691.9,3.71477]
[1739639238806,5.07700108,2692.3,2691.9,4.20153955]
[1739639239006,5.07700108,2692.3,2692.1,3.71449]
[1739639239506,5.07700108,2692.3,2692.1,3.71448]
[1739639239811,5.07700108,2692.3,2692.2,3.71443]
[1739639241404,5.07700108,2692.3,2692.1,3.71448]
[1739639241611,5.07700108,2692.3,2692.1,0.7758505]
[1739639241906,5.07700108,2692.3,2692.1,4.4903905]
[1739639242274,5.07700108,2692.3,2692.2,3.71443]
[1739639243573,5.07700108,2692.3,2692.1,4.4903905]
[1739639243773,5.07700108,2692.3,2692.1,8.2049305]
[1739639243995,5.07700108,2692.3,2692.2,0.82049305]
[1739639244232,5.07700108,2692.3,2692.2,4.53492305]
[1739639244813,5.07700108,2692.3,2692.2,0.82049305]
[1739639244994,5.07700108,2692.3,2692.1,3.71454]
[1739639246227,5.07700108,2692.3,2692.1,3.7145]
[1739639246433,5.07700108,2692.3,2692.1,3.71449]
[1739639246591,5.07700108,2692.3,2692.2,3.71443]
[1739639247029,5.07700108,2692.3,2692.1,3.71449]
[1739639247229,5.07700108,2692.3,2692.1,1.1473305]
[1739639247522,5.07700108,2692.3,2692.0,3.71471]
[1739639247729,5.07700108,2692.3,2691.9,7.75876501]
[1739639247938,5.07700108,2692.3,2691.7,3.0]
[1739639247939,5.07700108,2692.3,2691.7,6.71508]
[1739639248233,8.79141108,2692.3,2691.7,7.43013]
[1739639248552,5.07700108,2692.3,2691.9,3.71479]
[1739639249641,5.07700108,2692.3,2692.2,3.71443]
[1739639250402,5.07700108,2692.3,2692.1,3.71456]
[1739639251105,5.07700108,2692.3,2692.1,4.89250555]
[1739639251946,5.07700108,2692.3,2692.2,3.71443]
[1739639253648,5.07700108,2692.3,2692.2,8.06448546]
[1739639254952,5.07700108,2692.8,2692.2,8.06448546]
[1739639255178,5.07700108,2692.8,2692.3,3.71428]
[1739639255323,8.79061108,2692.8,2692.3,1.2956711]
[1739639256036,3.71385,2692.7,2692.2,3.71433]
[1739639256244,8.79061108,2692.8,2692.2,7.42864]
[1739639256556,8.79061108,2692.8,2692.2,7.42865]
[1739639256726,8.79061108,2692.8,2692.2,3.71431]
[1739639256926,8.79061108,2692.8,2692.1,0.7928]
[1739639256927,3.71399,2692.6,2692.1,0.7928]
[1739639257131,3.76050373,2692.5,2692.0,3.71464]
[1739639257336,3.71408,2692.5,2691.8,3.71491]
[1739639257524,5.07700108,2692.8,2691.6,16.40024546]
[1739639257720,3.71437,2692.3,2691.6,16.40024546]
[1739639258056,3.71437,2692.3,2691.8,3.71498]
[1739639258259,3.71383,2692.7,2691.9,0.371498]
[1739639258563,3.71401,2692.6,2692.0,3.71463]
[1739639258759,5.07700108,2692.8,2692.1,3.71447]
[1739639258961,3.71388,2692.6,2692.1,3.71447]
[1739639259825,5.07700108,2692.8,2692.0,4.50743]
[1739639260155,5.07700108,2692.8,2692.3,3.7142]
[1739639260725,5.07700108,2692.8,2692.2,3.71443]
[1739639260925,5.07700108,2692.8,2692.4,3.71413]
[1739639261127,5.07700108,2692.8,2692.4,4.50693]
[1739639261749,5.07700108,2692.8,2692.5,3.71394]
[1739639261954,5.07700108,2692.8,2692.4,8.22101]
[1739639262240,5.07700108,2692.8,2692.4,9.39883655]
[1739639262459,5.07700108,2692.8,2692.4,5.68470655]
[1739639262759,5.07700108,2692.8,2692.6,3.71378]
[1739639262924,5.07700108,2692.8,2692.4,5.68470655]
[1739639264635,8.79062108,2692.8,2692.4,1.17782655]
[1739639264959,8.79062108,2692.8,2692.2,8.04381546]
[1739639265160,8.79062108,2692.8,2692.2,11.75815546]
[1739639265359,8.79062108,2692.8,2692.2,3.71434]
[1739639265731,8.79062108,2692.8,2692.3,3.71425]
[1739639266365,8.79062108,2692.8,2692.2,3.71434]
[1739639266662,8.79062108,2692.8,2692.0,4.55822835]
[1739639266663,0.04642301,2692.7,2692.0,4.55822835]
[1739639266843,3.71423,2692.4,2691.9,7.27208546]
[1739639267432,7.42821,2692.5,2691.9,7.27196546]
[1739639267630,3.7141,2692.5,2691.9,10.98673546]
[1739639267846,3.7141,2692.5,2691.9,8.44785901]
[1739639268047,3.71402,2692.5,2691.7,4.48721]
[1739639268260,5.07700108,2692.6,2691.7,4.48721]
[1739639268456,5.07700108,2692.6,2691.6,3.55725546]
[1739639268661,3.71461,2692.1,2691.6,3.55725546]
[1739639269167,3.71461,2692.1,2691.6,7.27250546]
[1739639269467,3.71461,2692.1,2691.7,1.17599755]
[1739639269763,7.42927,2692.1,2691.6,3.55725546]
[1739639271174,3.71473,2692.0,2691.6,3.55725546]
[1739639271681,3.71488,2691.9,2691.4,12.05052]
[1739639273799,5.07700108,2692.0,2691.7,0.7722]
[1739639273946,5.07700108,2692.0,2691.7,4.48719]
[1739639274297,5.07700108,2692.0,2691.8,0.80444455]
[1739639274793,5.07700108,2692.0,2691.9,3.71484]
[1739639274993,5.07700108,2692.0,2691.9,7.27209546]
[1739639275871,3.71417,2692.4,2691.9,3.55725546]
[1739639276245,5.07700108,2692.5,2691.7,0.7722]
[1739639276246,3.71458,2692.1,2691.7,0.7722]
[1739639276451,3.71444,2692.2,2691.7,1.57666455]
[1739639276670,3.71472,2692.0,2691.6,3.55725546]
[1739639278282,3.71472,2692.0,2691.5,0.7722]
[1739639279480,3.71506,2691.8,2691.4,8.335]
[1739639280655,3.71497,2691.9,2691.4,8.335]
[1739639280855,3.71497,2691.9,2691.3,4.485]
[1739639281086,3.71497,2691.9,2691.4,0.82007]
[1739639281288,3.71503,2691.8,2691.4,0.82007]
[1739639281455,3.71521,2691.7,2691.1,7.48533]
[1739639281656,3.71521,2691.7,2691.1,3.0]
[1739639281851,8.79192108,2691.9,2691.3,3.7156]
[1739639282189,8.79192108,2691.9,2691.3,4.38716]
[1739639282481,3.71498,2691.8,2691.3,4.38716]
[1739639282985,8.79192108,2691.9,2691.3,4.38716]
[1739639284184,8.79192108,2691.9,2691.4,0.7694]
[1739639284389,5.07700108,2691.9,2691.4,0.7694]
[1739639284685,3.7154,2691.5,2691.1,3.0]
[1739639285255,3.71555,2691.4,2691.0,0.7694]
[1739639285453,3.71555,2691.4,2690.7,12.66265546]
[1739639285671,3.71583,2691.2,2690.7,12.82186]
[1739639285960,3.71583,2691.2,2690.8,1.653841]
[1739639286389,3.71583,2691.2,2690.4,7.27409546]
[1739639286390,0.04645011,2691.1,2690.5,4.48613]
[1739639286580,3.7161,2691.0,2690.5,0.7694]
[1739639286888,3.7161,2691.0,2690.4,7.27409546]
[1739639286889,3.7161,2691.0,2690.4,10.99085546]
[1739639287092,3.7161,2691.0,2690.4,7.27405546]
[1739639287395,3.71597,2691.1,2690.5,3.71673]
[1739639287591,3.71597,2691.1,2690.5,4.89274855]
[1739639287762,3.7161,2691.0,2690.5,1.17601855]
[1739639288355,3.7161,2691.0,2690.4,3.55725546]
[1739639288585,3.71632,2690.9,2690.4,3.55725546]
[1739639288771,3.7161,2691.0,2690.3,0.7694]
[1739639288974,3.71658,2690.7,2690.1,7.32665546]
[1739639289179,8.79358108,2690.7,2690.1,11.04388546]
[1739639289381,8.79358108,2690.7,2690.1,13.35370801]
[1739639289695,0.04646145,2690.6,2690.1,3.07922255]
[1739639289854,0.04646145,2690.6,2690.0,12.05447]
[1739639289855,3.71678,2690.5,2690.0,12.05447]
[1739639290062,0.04646145,2690.6,2690.0,15.77186]
[1739639290279,3.71687,2690.5,2689.9,4.48698]
[1739639290872,8.79373108,2690.6,2689.9,4.48698]
[1739639291072,8.79373108,2690.6,2690.0,3.71736]
[1739639291279,8.79373108,2690.6,2689.9,4.48698]
[1739639291280,8.79373108,2690.6,2690.1,3.71729]
[1739639292307,8.79373108,2690.6,2689.9,4.48698]
[1739639292594,8.79373108,2690.6,2689.9,5.29132355]